lending/lending_fUSD_20250130
["ID","MTS","AMOUNT","RATE_DAILY","PERIOD"]
[350973926,1738259455308,-500.0,0.00019935,3]
[350973927,1738259455318,-500.0,0.00019935,3]
[350973928,1738259455328,-500.0,0.00019935,3]
[350973929,1738259455339,-500.0,0.00019935,3]
[350973930,1738259455349,-500.0,0.00019935,3]
[350973931,1738259455358,-151.0,0.00019935,2]
[350973932,1738259455368,-500.68568285,0.00019935,3]
[350973933,1738259455378,-898.63,0.00019935,3]
[350973934,1738259455387,-500.0,0.00019935,3]
[350973935,1738259455397,-500.0,0.00019935,3]
[350973936,1738259455408,-500.0,0.00019935,3]
[350973937,1738259455418,-416.083091,0.00019935,2]
[350973938,1738259455429,-657.19,0.00019935,3]
[350973939,1738259455439,-500.0,0.00019935,3]
[350973940,1738259455449,-416.083091,0.00019935,2]
[350973941,1738259455459,-221.6025,0.00019935,2]
[350973942,1738259455469,-500.0,0.00019935,3]
[350973943,1738259455479,-500.0,0.00019935,3]
[350973944,1738259455489,-221.6025,0.00019935,2]
[350973945,1738259455499,-392.743207,0.00019935,2]
[350973946,1738259455509,-612.466478,0.00019935,2]
[350973947,1738259455520,-500.0,0.00019935,3]
[350973948,1738259455530,-500.0,0.00019935,3]
[350973949,1738259455539,-392.743207,0.00019935,2]
[350973950,1738259455549,-612.466478,0.00019935,2]
[350973951,1738259455559,-500.0,0.00019935,3]
[350973952,1738259455569,-500.0,0.00019935,3]
[350973953,1738259455579,-1607.97,0.00019935,3]
[350973954,1738259455588,-500.0,0.00019935,3]
[350973955,1738259455598,-508.76325058,0.00019935,3]
[350973956,1738259455608,-500.0,0.00019935,3]
[350973957,1738259455618,-500.0,0.00019935,3]
[350973958,1738259455627,-748.58,0.00019935,3]
[350973959,1738259455637,-500.0,0.00019935,3]
[350973960,1738259455647,-500.0,0.00019935,3]
[350973961,1738259455657,-509.7968452,0.00019935,3]
[350973962,1738259455667,-506.71022716,0.00019935,3]
[350973963,1738259455676,-826.08,0.00019935,3]
[350973964,1738259455689,-500.0,0.00019935,3]
[350973965,1738259455699,-511.31848921,0.00019935,3]
[350973966,1738259455710,-497.2644259,0.00019935,3]
[350973967,1738259455719,-503.70196589,0.00019935,3]
[350973968,1738259455730,-601.02,0.00019935,3]
[350973969,1738259455739,-790.13,0.00019935,3]
[350973970,1738259455750,-500.0,0.00019935,3]
[350973971,1738259455759,-500.0,0.00019935,3]
[350973972,1738259455769,-500.0,0.00019935,3]
[350973973,1738259455779,-500.0,0.00019935,3]
[350973974,1738259455789,-500.0,0.00019935,3]
[350973975,1738259455799,-502.5852256,0.00019935,3]
[350973976,1738259455809,-500.0,0.00019935,3]
[350973977,1738259455819,-696.02,0.00019935,3]
[350973978,1738259455831,-500.0,0.00019935,3]
[350973979,1738259455841,-508.64435518,0.00019935,3]
[350973980,1738259455851,-500.0,0.00019935,3]
[350973981,1738259455862,-500.0,0.00019935,3]
[350973982,1738259455875,-1139.39,0.00019935,3]
[350973983,1738259455885,-500.0,0.00019935,3]
[350973984,1738259455896,-500.0,0.00019935,3]
[350973985,1738259455907,-635.47156821,0.00019935,3]
[350973986,1738259455916,-1096.95,0.00019935,3]
[350973987,1738259455928,-1147.05,0.00019935,3]
[350973988,1738259455938,-500.0,0.00019935,3]
[350973989,1738259455949,-541.57832611,0.00019935,3]
[350973990,1738259455960,-175.595869,0.00019935,2]
[350973991,1738259455970,-1491.059003,0.00019935,2]
[350973992,1738259455981,-175.595869,0.00019935,2]
[350973993,1738259455991,-1632.87,0.00019935,3]
[350973994,1738259456000,-1491.059003,0.00019935,2]
[350973995,1738259456010,-500.0,0.00019935,3]
[350973996,1738259456020,-928.04,0.00019935,3]
[350973997,1738259456030,-500.0,0.00019935,3]
[350973998,1738259456040,-294.23086336,0.00019935,3]
[350973999,1738259456050,-500.0,0.00019935,3]
[350974000,1738259456061,-1549.99,0.00019935,3]
[350974001,1738259456072,-213.90203874,0.00019935,3]
[350974002,1738259456082,-500.0,0.00019935,3]
[350974003,1738259456091,-610.19,0.00019935,3]
[350974004,1738259456101,-2505.84,0.00019935,3]
[350974005,1738259456112,-1063.88,0.00019935,3]
[350974006,1738259456122,-500.0,0.00019935,3]
[350974007,1738259456131,-157.246977,0.00019935,2]
[350974008,1738259456142,-157.246977,0.00019935,2]
[350974009,1738259456152,-1889.11,0.00019935,3]
[350974010,1738259456163,-500.0,0.00019935,3]
[350974011,1738259456173,-1638.74,0.00019935,3]
[350974012,1738259456184,-157.246977,0.00019935,2]
[350974013,1738259456194,-157.246977,0.00019935,2]
[350974014,1738259456204,-500.0,0.00019935,3]
[350974015,1738259456214,-151.0,0.00019935,2]
[350974016,1738259456224,-151.0,0.00019935,2]
[350974017,1738259456234,-724.05,0.00019935,3]
[350974018,1738259456244,-500.0,0.00019935,3]
[350974019,1738259456253,-285.775519,0.00019935,2]
[350974020,1738259456264,-341.42834123,0.00019935,3]
[350974021,1738259456274,-887.51,0.00019935,3]
[350974022,1738259456283,-510.86204337,0.00019935,3]
[350974023,1738259456294,-1097.82,0.00019935,3]
[350974024,1738259456304,-500.0,0.00019935,3]
[350974025,1738259456313,-500.0,0.00019935,3]
[350974026,1738259456323,-3318.624164,0.00019935,2]
[350974027,1738259456333,-3318.624164,0.00019935,2]
[350974028,1738259456343,-565.16,0.00019935,3]
[350974029,1738259456352,-1933.89,0.00019935,3]
[350974030,1738259456361,-3318.624164,0.00019935,2]
[350974031,1738259456371,-3318.624164,0.00019935,2]
[350974032,1738259456380,-500.0,0.00019935,3]
[350974033,1738259456390,-500.0,0.00019935,3]
[350974034,1738259456399,-2104.8,0.00019935,3]
[350974035,1738259456408,-1746.7,0.00019935,3]
[350974036,1738259456417,-500.0,0.00019935,3]
[350974037,1738259456427,-500.0,0.00019935,3]
[350974038,1738259456438,-500.0,0.00019935,3]
[350974039,1738259456448,-578.44809463,0.00019935,3]
[350974040,1738259456458,-500.0,0.00019935,3]
[350974041,1738259456468,-500.0,0.00019935,3]
[350974042,1738259456477,-5500.090536,0.00019935,2]
[350974043,1738259456488,-5500.090536,0.00019935,2]
[350974044,1738259456497,-5500.090536,0.00019935,2]
[350974045,1738259456507,-500.0,0.00019935,3]
[350974046,1738259456516,-1265.45,0.00019935,3]
[350974047,1738259456526,-500.0,0.00019935,3]
[350974048,1738259456536,-5500.090536,0.00019935,2]
[350974049,1738259456545,-5500.090536,0.00019935,2]
[350974050,1738259456555,-5500.090536,0.00019935,2]
[350974051,1738259456565,-1527.98,0.00019935,3]
[350974052,1738259456575,-1416.55,0.00019935,3]
[350974053,1738259456584,-1886.85,0.00019935,3]
[350974054,1738259456594,-500.0,0.00019935,3]
[350974055,1738259456604,-275.65304738,0.00019935,3]
[350974056,1738259456614,-500.0,0.00019935,3]
[350974057,1738259456624,-500.0,0.00019935,3]
[350974058,1738259456633,-855.02,0.00019935,3]
[350974059,1738259456643,-728.17,0.00019935,3]
[350974060,1738259456653,-1806.89,0.00019935,3]
[350974061,1738259456663,-500.0,0.00019935,3]
[350974062,1738259456673,-151.0,0.00019935,2]
[350974063,1738259456683,-151.0,0.00019935,2]
[350974064,1738259456693,-542.62733037,0.00019935,3]
[350974065,1738259456704,-1254.12,0.00019935,3]
[350974066,1738259456714,-502.34681559,0.00019935,3]
[350974067,1738259456725,-500.0,0.00019935,3]
[350974068,1738259456736,-500.0,0.00019935,3]
[350974069,1738259456745,-1689.64,0.00019935,3]
[350974070,1738259456755,-627.39,0.00019935,3]
[350974071,1738259456766,-500.0,0.00019935,3]
[350974072,1738259456777,-1359.84,0.00019935,3]
[350974073,1738259456786,-500.0,0.00019935,3]
[350974074,1738259456797,-1321.75,0.00019935,3]
[350974075,1738259456807,-500.0,0.00019935,3]
[350974076,1738259456817,-3476.83,0.00019935,3]
[350974077,1738259456828,-1050.73,0.00019935,3]
[350974078,1738259456839,-796.97,0.00019935,3]
[350974079,1738259456849,-500.0,0.00019935,3]
[350974080,1738259456859,-500.0,0.00019935,3]
[350974081,1738259456873,-1283.49,0.00019935,3]
[350974082,1738259456883,-885.16,0.00019935,3]
[350974083,1738259456893,-480.74201096,0.00019935,3]
[350974084,1738259456903,-1525.39,0.00019935,3]
[350974085,1738259456914,-964.61,0.00019935,2]
[350974086,1738259456924,-500.0,0.00019935,3]
[350974087,1738259456934,-2292.92,0.00019935,3]
[350974088,1738259456945,-500.0,0.00019935,3]
[350974089,1738259456955,-500.0,0.00019935,3]
[350974090,1738259456964,-500.0,0.00019935,3]
[350974091,1738259456974,-1910.0,0.00019935,3]
[350974092,1738259456984,-214.06223853,0.00019935,3]
[350974093,1738259456993,-3692.12,0.00019935,3]
[350974094,1738259457002,-1701.34,0.00019935,3]
[350974095,1738259457012,-292.9253874,0.00019935,2]
[350974096,1738259457022,-504.4901889,0.00019935,3]
[350974097,1738259457031,-1750.63,0.00019935,3]
[350974098,1738259457040,-6816.17,0.00019935,3]
[350974099,1738259457050,-1280.0,0.00019935,3]
[350974100,1738259457059,-319.47469721,0.00019935,3]
[350974101,1738259457069,-2863.57,0.00019935,3]
[350974102,1738259457079,-515.4577049,0.00019935,3]
[350974103,1738259457088,-1457.97,0.00019935,3]
[350974104,1738259457098,-502.38171886,0.00019935,3]
[350974105,1738259457107,-26243.63,0.00019935,3]
[350974106,1738259457117,-502.32436842,0.00019935,3]
[350974107,1738259457126,-6834.65,0.00019935,3]
[350974108,1738259457137,-3303.51,0.00019935,3]
[350974109,1738259457147,-500.0,0.00019935,3]
[350974110,1738259457156,-500.0,0.00019935,3]
[350974111,1738259457166,-500.0,0.00019935,3]
[350974112,1738259457175,-500.0,0.00019935,3]
[350974113,1738259457184,-500.0,0.00019935,3]
[350974114,1738259457194,-1502.41,0.00019935,3]
[350974115,1738259457204,-1408.01,0.00019935,3]
[350974116,1738259457213,-1175.39,0.00019935,3]
[350974117,1738259457223,-1768.01,0.00019935,3]
[350974118,1738259457236,-500.0,0.00019935,3]
[350974119,1738259457245,-1952.58,0.00019935,3]
[350974120,1738259457255,-500.0,0.00019935,3]
[350974121,1738259457265,-500.0,0.00019935,3]
[350974122,1738259457274,-1195.45,0.00019935,3]
[350974123,1738259457284,-500.0,0.00019935,3]
[350974124,1738259457293,-567.29,0.00019935,3]
[350974125,1738259457303,-1280.27,0.00019935,3]
[350974126,1738259457313,-1949.44,0.00019935,3]
[350974127,1738259457323,-1877.8,0.00019935,3]
[350974128,1738259457333,-500.0,0.00019935,3]
[350974129,1738259457342,-1028.19,0.00019935,3]
[350974130,1738259457352,-500.0,0.00019935,3]
[350974131,1738259457362,-2223.45,0.00019935,3]
[350974132,1738259457372,-500.0,0.00019935,3]
[350974133,1738259457383,-886.37,0.00019935,3]
[350974134,1738259457393,-816.06,0.00019935,3]
[350974135,1738259457402,-868.63,0.00019935,3]
[350974136,1738259457412,-500.0,0.00019935,3]
[350974137,1738259457422,-258.11,0.00019935,3]
[350974138,1738259457431,-1494.55,0.00019935,3]
[350974139,1738259457441,-1060.89,0.00019935,3]
[350974140,1738259457452,-500.0,0.00019935,3]
[350974141,1738259457462,-500.0,0.00019935,3]
[350974142,1738259457472,-500.0,0.00019935,3]
[350974143,1738259457482,-3785.62,0.00019935,3]
[350974144,1738259457492,-1051.11,0.00019935,3]
[350974145,1738259457685,-751.3,0.00019935,3]
[350974146,1738259457697,-1018.24,0.00019935,3]
[350974147,1738259457708,-344.742665,0.00019935,2]
[350974148,1738259457719,-344.742665,0.00019935,2]
[350974149,1738259457732,-500.0,0.00019935,3]
[350974150,1738259457742,-2022.42,0.00019935,3]
[350974151,1738259457752,-842.242101,0.00019935,2]
[350974152,1738259457763,-1503.9,0.00019935,3]
[350974153,1738259457772,-842.242101,0.00019935,2]
[350974154,1738259457782,-344.742665,0.00019935,2]
[350974155,1738259457792,-344.742658,0.00019935,2]
[350974156,1738259457801,-842.242101,0.00019935,2]
[350974157,1738259457812,-842.242102,0.00019935,2]
[350974158,1738259457822,-1117.300431,0.00019935,2]
[350974159,1738259457832,-1905.95,0.00019935,3]
[350974160,1738259457842,-1117.300431,0.00019935,2]
[350974161,1738259457852,-1020.53,0.00019935,3]
[350974162,1738259457863,-1117.300431,0.00019935,2]
[350974163,1738259457877,-500.0,0.00019935,3]
[350974164,1738259457887,-1117.300431,0.00019935,2]
[350974165,1738259457899,-1117.300431,0.00019935,2]
[350974166,1738259457909,-1117.300431,0.00019935,2]
[350974167,1738259457919,-500.0,0.00019935,3]
[350974168,1738259457929,-1390.04,0.00019935,3]
[350974169,1738259457940,-1448.753749,0.00019935,2]
[350974170,1738259457951,-1662.43,0.00019935,3]
[350974171,1738259457961,-1448.753749,0.00019935,2]
[350974172,1738259457971,-350.38644,0.00019935,2]
[350974173,1738259457982,-350.38644,0.00019935,2]
[350974174,1738259457991,-500.0,0.00019935,3]
[350974175,1738259458001,-315.506443,0.00019935,2]
[350974176,1738259458010,-315.506443,0.00019935,2]
[350974177,1738259458020,-1448.753749,0.00019935,2]
[350974178,1738259458029,-211.806087,0.00019935,2]
[350974179,1738259458039,-1448.753742,0.00019935,2]
[350974180,1738259458050,-350.38644,0.00019935,2]
[350974181,1738259458059,-350.386443,0.00019935,2]
[350974182,1738259458069,-315.506443,0.00019935,2]
[350974183,1738259458079,-315.50645,0.00019935,2]
[350974184,1738259458088,-2049.61,0.00019935,3]
[350974185,1738259458097,-1565.22,0.00019935,3]
[350974186,1738259458106,-666.0,0.00019935,2]
[350974187,1738259458116,-151.0,0.00019936,2]
[350974188,1738259458125,-151.0,0.00019936,2]
[350974189,1738259458135,-500.0,0.00019936,3]
[350974190,1738259458144,-500.0,0.00019936,3]
[350974191,1738259458154,-500.0,0.00019936,3]
[350974192,1738259458163,-500.0,0.00019936,3]
[350974193,1738259458173,-500.0,0.00019936,3]
[350974194,1738259458183,-500.0,0.00019936,3]
[350974195,1738259458193,-500.0,0.00019936,3]
[350974196,1738259458203,-500.0,0.00019936,3]
[350974197,1738259458212,-500.0,0.00019936,3]
[350974198,1738259458222,-500.0,0.00019936,3]
[350974199,1738259458233,-500.0,0.00019936,3]
[350974200,1738259458242,-500.0,0.00019936,3]
[350974201,1738259458252,-500.0,0.00019936,3]
[350974202,1738259458263,-883.93,0.00019936,3]
[350974203,1738259458272,-605.888653,0.00019936,2]
[350974204,1738259458282,-500.0,0.00019936,3]
[350974205,1738259458292,-605.888653,0.00019936,2]
[350974206,1738259458301,-500.0,0.00019936,3]
[350974207,1738259458311,-500.0,0.00019936,3]
[350974208,1738259458321,-500.0,0.00019936,3]
[350974209,1738259458331,-500.0,0.00019936,3]
[350974210,1738259458340,-505.18094785,0.00019936,3]
[350974211,1738259458350,-500.0,0.00019936,3]
[350974212,1738259458360,-824.67,0.00019936,3]
[350974213,1738259458370,-526.55318651,0.00019936,3]
[350974214,1738259458380,-500.0,0.00019936,3]
[350974215,1738259458389,-553.22,0.00019936,3]
[350974216,1738259458399,-364.75979017,0.00019936,3]
[350974217,1738259458409,-500.0,0.00019936,3]
[350974218,1738259458420,-500.0,0.00019936,3]
[350974219,1738259458429,-528.562111,0.00019936,2]
[350974220,1738259458439,-528.562111,0.00019936,2]
[350974221,1738259458448,-500.0,0.00019936,3]
[350974222,1738259458458,-500.0,0.00019936,3]
[350974223,1738259458468,-552.87834759,0.00019936,3]
[350974224,1738259458478,-528.562111,0.00019936,2]
[350974225,1738259458487,-504.31757914,0.00019936,3]
[350974226,1738259458496,-528.562111,0.00019936,2]
[350974227,1738259458506,-500.0,0.00019936,3]
[350974228,1738259458516,-500.0,0.00019936,3]
[350974229,1738259458526,-500.0,0.00019936,3]
[350974230,1738259458535,-527.00890781,0.00019936,3]
[350974231,1738259458545,-505.55616516,0.00019936,3]
[350974232,1738259458555,-513.19157539,0.00019936,3]
[350974233,1738259458564,-500.0,0.00019936,3]
[350974234,1738259458574,-500.0,0.00019936,3]
[350974235,1738259458583,-503.3277103,0.00019936,3]
[350974236,1738259458593,-500.0,0.00019936,3]
[350974237,1738259458603,-500.0,0.00019936,3]
[350974238,1738259458613,-275.74349969,0.00019936,3]
[350974239,1738259458622,-522.0634683,0.00019936,3]
[350974240,1738259458631,-500.0,0.00019936,3]
[350974241,1738259458641,-500.0,0.00019936,3]
[350974242,1738259458650,-500.0,0.00019936,3]
[350974243,1738259458660,-502.02777887,0.00019936,3]
[350974244,1738259458670,-500.0,0.00019936,3]
[350974245,1738259458679,-500.0,0.00019936,3]
[350974246,1738259458689,-778.15,0.00019936,3]
[350974247,1738259458698,-503.36138024,0.00019936,3]
[350974248,1738259458708,-500.0,0.00019936,3]
[350974249,1738259458717,-500.0,0.00019936,3]
[350974250,1738259458727,-500.0,0.00019936,3]
[350974251,1738259458736,-500.0,0.00019936,3]
[350974252,1738259458747,-500.0,0.00019936,3]
[350974253,1738259458756,-500.0,0.00019936,3]
[350974254,1738259458766,-500.0,0.00019936,3]
[350974255,1738259458776,-151.0,0.00019936,2]
[350974256,1738259458785,-526.68,0.00019936,3]
[350974257,1738259458796,-151.0,0.00019936,2]
[350974258,1738259458806,-486.30118361,0.00019936,3]
[350974259,1738259458816,-151.0,0.00019936,2]
[350974260,1738259458826,-200.292835,0.00019936,2]
[350974261,1738259458835,-181.611224,0.00019936,2]
[350974262,1738259458845,-500.0,0.00019936,3]
[350974263,1738259458854,-500.0,0.00019936,3]
[350974264,1738259458867,-514.9467934,0.00019936,3]
[350974265,1738259458879,-500.0,0.00019936,3]
[350974266,1738259458888,-356.27635425,0.00019936,3]
[350974267,1738259458899,-500.0,0.00019936,3]
[350974268,1738259458910,-1294.45,0.00019936,3]
[350974269,1738259458919,-424.82567,0.00019936,2]
[350974270,1738259458928,-500.0,0.00019936,3]
[350974271,1738259458938,-424.82567,0.00019936,2]
[350974272,1738259458948,-424.82567,0.00019936,2]
[350974273,1738259458959,-424.82567,0.00019936,2]
[350974274,1738259458968,-500.0,0.00019936,3]
[350974275,1738259458978,-500.0,0.00019936,3]
[350974276,1738259458987,-500.0,0.00019936,3]
[350974277,1738259458997,-500.0,0.00019936,3]
[350974278,1738259459006,-500.09,0.00019936,3]
[350974279,1738259459015,-500.0,0.00019936,3]
[350974280,1738259459025,-500.0,0.00019936,3]
[350974281,1738259459035,-500.0,0.00019936,3]
[350974282,1738259459044,-500.0,0.00019936,3]
[350974283,1738259459054,-500.0,0.00019936,3]
[350974284,1738259459063,-500.0,0.00019936,3]
[350974285,1738259459073,-500.0,0.00019936,3]
[350974286,1738259459083,-500.0,0.00019936,3]
[350974287,1738259459092,-500.0,0.00019936,3]
[350974288,1738259459103,-500.0,0.00019936,3]
[350974289,1738259459112,-1287.46,0.00019936,3]
[350974290,1738259459122,-1029.88,0.00019936,3]
[350974291,1738259459131,-500.0,0.00019936,3]
[350974292,1738259459140,-1053.89,0.00019936,3]
[350974293,1738259459150,-500.0,0.00019936,3]
[350974294,1738259459159,-500.0,0.00019936,3]
[350974295,1738259459169,-361.44089683,0.00019936,3]
[350974296,1738259459179,-1069.78,0.00019936,3]
[350974297,1738259459189,-2745.67,0.00019936,3]
[350974298,1738259459198,-2364.95,0.00019936,3]
[350974299,1738259459208,-500.0,0.00019936,3]
[350974300,1738259459218,-500.0,0.00019936,3]
[350974301,1738259459229,-500.0,0.00019936,3]
[350974302,1738259459240,-500.0,0.00019936,3]
[350974303,1738259459250,-500.0,0.00019936,3]
[350974304,1738259459260,-756.15,0.00019936,3]
[350974305,1738259459271,-986.13,0.00019936,3]
[350974306,1738259459281,-500.0,0.00019936,3]
[350974307,1738259459291,-1492.24,0.00019936,3]
[350974308,1738259459302,-928.76,0.00019936,3]
[350974309,1738259459311,-394.373077,0.00019936,2]
[350974310,1738259459321,-394.373077,0.00019936,2]
[350974311,1738259459331,-500.0,0.00019936,3]
[350974312,1738259459340,-394.373077,0.00019936,2]
[350974313,1738259459350,-394.373077,0.00019936,2]
[350974314,1738259459361,-394.373077,0.00019936,2]
[350974315,1738259459371,-394.373077,0.00019936,2]
[350974316,1738259459380,-500.0,0.00019936,3]
[350974317,1738259459390,-516.54,0.00019936,3]
[350974318,1738259459399,-500.0,0.00019936,3]
[350974319,1738259459409,-561.580834,0.00019936,2]
[350974320,1738259459419,-561.580834,0.00019936,2]
[350974321,1738259459428,-561.580834,0.00019936,2]
[350974322,1738259459438,-500.0,0.00019936,3]
[350974323,1738259459447,-561.580834,0.00019936,2]
[350974324,1738259459456,-1573.85,0.00019936,3]
[350974325,1738259459466,-500.0,0.00019936,3]
[350974326,1738259459475,-561.580834,0.00019936,2]
[350974327,1738259459487,-2252.8,0.00019936,3]
[350974328,1738259459496,-561.580834,0.00019936,2]
[350974329,1738259459506,-500.0,0.00019936,3]
[350974330,1738259459516,-234.26249016,0.00019936,3]
[350974331,1738259459526,-500.0,0.00019936,3]
[350974332,1738259459535,-500.0,0.00019936,3]
[350974333,1738259459544,-500.0,0.00019936,3]
[350974334,1738259459554,-500.0,0.00019936,3]
[350974335,1738259459563,-500.0,0.00019936,3]
[350974336,1738259459573,-500.0,0.00019936,3]
[350974337,1738259459583,-2009.36,0.00019936,3]
[350974338,1738259459593,-500.0,0.00019936,3]
[350974339,1738259459603,-1082.61,0.00019936,3]
[350974340,1738259459613,-875.47,0.00019936,3]
[350974341,1738259459623,-1000.0,0.00019936,30]
[350974342,1738259459633,-2070.06,0.00019936,3]
[350974343,1738259459643,-563.69211407,0.00019936,3]
[350974344,1738259459653,-475.310983,0.00019936,2]
[350974345,1738259459663,-475.310983,0.00019936,2]
[350974346,1738259459673,-475.310983,0.00019936,2]
[350974347,1738259459683,-500.0,0.00019936,3]
[350974348,1738259459693,-475.310983,0.00019936,2]
[350974349,1738259459703,-475.310983,0.00019936,2]
[350974350,1738259459713,-500.0,0.00019936,3]
[350974351,1738259459723,-475.310983,0.00019936,2]
[350974352,1738259459736,-500.0,0.00019936,3]
[350974353,1738259459746,-543.87,0.00019936,3]
[350974354,1738259459754,-500.0,0.00019936,3]
[350974355,1738259459764,-500.0,0.00019936,3]
[350974356,1738259459774,-500.0,0.00019936,3]
[350974357,1738259459784,-1081.61,0.00019936,3]
[350974358,1738259459793,-500.0,0.00019936,3]
[350974359,1738259459802,-500.0,0.00019936,3]
[350974360,1738259459811,-500.0,0.00019936,3]
[350974361,1738259459821,-2399.725549,0.00019936,2]
[350974362,1738259459830,-2399.725549,0.00019936,2]
[350974363,1738259459839,-2399.725549,0.00019936,2]
[350974364,1738259459849,-500.0,0.00019936,3]
[350974365,1738259459860,-500.0,0.00019936,3]
[350974366,1738259459872,-2399.725549,0.00019936,2]
[350974367,1738259459881,-2399.725549,0.00019936,2]
[350974368,1738259459891,-1692.22,0.00019936,3]
[350974369,1738259459901,-500.0,0.00019936,3]
[350974370,1738259459911,-2399.725549,0.00019936,2]
[350974371,1738259459920,-500.0,0.00019936,3]
[350974372,1738259459930,-1232.99,0.00019936,3]
[350974373,1738259459941,-810.65,0.00019936,3]
[350974374,1738259459951,-151.0,0.00019936,2]
[350974375,1738259459961,-151.0,0.00019936,2]
[350974376,1738259459971,-151.0,0.00019936,2]
[350974377,1738259459982,-500.0,0.00019936,3]
[350974378,1738259459991,-500.0,0.00019936,3]
[350974379,1738259460001,-544.05,0.00019936,3]
[350974380,1738259460011,-500.0,0.00019936,3]
[350974381,1738259460020,-719.65,0.00019936,3]
[350974382,1738259460030,-500.0,0.00019936,3]
[350974383,1738259460040,-671.28,0.00019936,3]
[350974384,1738259460050,-416.083091,0.00019936,2]
[350974385,1738259460059,-416.083091,0.00019936,2]
[350974386,1738259460069,-416.083091,0.00019936,2]
[350974387,1738259460079,-416.083091,0.00019936,2]
[350974388,1738259460088,-416.083091,0.00019936,2]
[350974389,1738259460104,-416.083091,0.00019936,2]
[350974390,1738259460114,-221.6025,0.00019936,2]
[350974391,1738259460124,-221.6025,0.00019936,2]
[350974392,1738259460134,-221.6025,0.00019936,2]
[350974393,1738259460144,-614.95,0.00019936,3]
[350974394,1738259460154,-768.26,0.00019936,3]
[350974395,1738259460164,-221.6025,0.00019936,2]
[350974396,1738259460173,-392.743207,0.00019936,2]
[350974397,1738259460183,-221.6025,0.00019936,2]
[350974398,1738259460193,-392.743207,0.00019936,2]
[350974399,1738259460203,-221.6025,0.00019936,2]
[350974400,1738259460213,-392.743207,0.00019936,2]
[350974401,1738259460222,-612.466478,0.00019936,2]
[350974402,1738259460232,-612.466478,0.00019936,2]
[350974403,1738259460242,-500.0,0.00019936,3]
[350974404,1738259460252,-612.466478,0.00019936,2]
[350974405,1738259460261,-392.743207,0.00019936,2]
[350974406,1738259460271,-392.743207,0.00019936,2]
[350974407,1738259460280,-392.743207,0.00019936,2]
[350974408,1738259460289,-612.466478,0.00019936,2]
[350974409,1738259460298,-500.0,0.00019936,3]
[350974410,1738259460308,-612.466478,0.00019936,2]
[350974411,1738259460318,-584.65,0.00019936,3]
[350974412,1738259460328,-612.466478,0.00019936,2]
[350974413,1738259460337,-500.0,0.00019936,3]
[350974414,1738259460346,-500.0,0.00019936,3]
[350974415,1738259460355,-500.0,0.00019936,3]
[350974416,1738259460366,-500.0,0.00019936,3]
[350974417,1738259460375,-500.0,0.00019936,3]
[350974418,1738259460385,-683.71,0.00019936,3]
[350974419,1738259460395,-549.43,0.00019936,3]
[350974420,1738259460404,-500.0,0.00019936,3]
[350974421,1738259460414,-500.0,0.00019936,3]
[350974422,1738259460423,-511.70451407,0.00019936,3]
[350974423,1738259460433,-500.0,0.00019936,3]
[350974424,1738259460442,-500.0,0.00019936,3]
[350974425,1738259460452,-500.0,0.00019936,3]